fUST/lending_fUST_20251115
["ID","MTS","AMOUNT","RATE_DAILY","PERIOD"]
[394028314,1763200310462,-687.74,0.00051506,120]
[394028315,1763200310477,-554.45,0.00051506,120]
[394028316,1763200310493,-500.0,0.00051506,120]
[394028317,1763200310507,-500.0,0.00051506,120]
[394028318,1763200310522,-500.0,0.00051506,120]
[394028319,1763200310536,-500.0,0.00051506,120]
[394028320,1763200310550,-582.92,0.00051506,120]
[394028321,1763200310565,-500.0,0.00051506,120]
[394028322,1763200310579,-790.87,0.00051506,120]
[394028323,1763200310593,-629.47,0.00051506,120]
[394028324,1763200310607,-673.94,0.00051506,120]
[394028325,1763200310621,-500.0,0.00051506,120]
[394028326,1763200310636,-758.17,0.00051506,120]
[394028327,1763200310650,-590.85,0.00051506,120]
[394028328,1763200310665,-500.0,0.00051506,120]
[394028329,1763200310679,-505.88161254,0.00051506,120]
[394028330,1763200310866,-731.68,0.00051506,120]
[394028331,1763200310879,-532.13857649,0.00051506,120]
[394028332,1763200310889,-571.3,0.00051506,120]
[394028333,1763200310898,-500.0,0.00051506,120]
[394028334,1763200310909,-500.0,0.00051506,120]
[394028335,1763200310919,-500.0,0.00051506,120]
[394028336,1763200310928,-1090.76,0.00051506,7]
[394028337,1763200310937,-500.0,0.00051506,120]
[394028338,1763200310947,-500.0,0.00051506,120]
[394028339,1763200310957,-3400.85,0.00051506,2]
[394028340,1763200310966,-500.0,0.00051506,120]
[394028341,1763200310975,-1174.97,0.00051506,120]
[394028342,1763200310984,-633.33225113,0.00051506,120]
[394028343,1763200310993,-618.7,0.00051506,120]
[394028344,1763200311002,-505.72999292,0.00051506,120]
[394028345,1763200311011,-506.21,0.00051506,120]
[394028346,1763200311022,-500.0,0.00051506,120]
[394028347,1763200311031,-500.0,0.00051506,120]
[394028348,1763200311040,-536.43,0.00051506,120]
[394028349,1763200311049,-505.46,0.00051506,120]
[394028350,1763200311058,-500.0,0.00051506,120]
[394028351,1763200311068,-500.0,0.00051506,120]
[394028352,1763200311077,-500.0,0.00051506,120]
[394028353,1763200311086,-566.44,0.00051506,120]
[394028354,1763200311095,-500.0,0.00051506,120]
[394028355,1763200311104,-829.99,0.00051506,120]
[394028356,1763200311113,-500.0,0.00051506,120]
[394028357,1763200311122,-500.0,0.00051506,120]
[394028358,1763200311131,-258.50761479,0.00051506,120]
[394028359,1763200311140,-500.0,0.00051506,120]
[394028360,1763200311149,-500.0,0.00051506,120]
[394028361,1763200311158,-500.0,0.00051506,120]
[394028362,1763200311168,-500.0,0.00051506,120]
[394028363,1763200311177,-500.0,0.00051506,120]
[394028364,1763200311186,-546.38,0.00051506,120]
[394028365,1763200311196,-500.0,0.00051506,120]
[394028366,1763200311206,-785.26,0.00051506,120]
[394028367,1763200311218,-500.0,0.00051506,120]
[394028368,1763200311227,-500.0,0.00051506,120]
[394028369,1763200311237,-500.0,0.00051506,120]
[394028370,1763200311246,-500.0,0.00051506,120]
[394028371,1763200311255,-500.0,0.00051506,120]
[394028372,1763200311266,-500.0,0.00051506,120]
[394028373,1763200311275,-500.0,0.00051506,120]
[394028374,1763200311286,-500.0,0.00051506,120]
[394028375,1763200311295,-602.49634814,0.00051506,120]
[394028376,1763200311304,-500.0,0.00051506,120]
[394028377,1763200311313,-500.0,0.00051506,120]
[394028378,1763200311322,-500.0,0.00051506,120]
[394028379,1763200311332,-500.0,0.00051506,120]
[394028380,1763200311341,-500.0,0.00051506,120]
[394028381,1763200311350,-1165.61,0.00051506,120]
[394028382,1763200311359,-629.76,0.00051506,120]
[394028383,1763200311368,-500.0,0.00051506,120]
[394028384,1763200311377,-511.51,0.00051506,2]
[394028385,1763200311386,-500.0,0.00051506,120]
[394028386,1763200311395,-500.0,0.00051506,120]
[394028387,1763200311404,-500.0,0.00051506,120]
[394028388,1763200311413,-500.0,0.00051506,120]
[394028389,1763200311422,-500.0,0.00051506,120]
[394028390,1763200311431,-515.28,0.00051506,120]
[394028391,1763200311440,-500.0,0.00051506,120]
[394028392,1763200311449,-500.0,0.00051506,120]
[394028393,1763200311459,-509.46527107,0.00051506,120]
[394028394,1763200311468,-500.0,0.00051506,120]
[394028395,1763200311477,-361.97656449,0.00051506,120]
[394028396,1763200311486,-958.77,0.00051506,120]
[394028397,1763200311495,-500.0,0.00051506,120]
[394028398,1763200311504,-500.0,0.00051506,120]
[394028399,1763200311513,-500.0,0.00051506,120]
[394028400,1763200311523,-500.0,0.00051506,120]
[394028401,1763200311532,-500.0,0.00051506,120]
[394028402,1763200311541,-500.0,0.00051506,120]
[394028403,1763200311550,-500.0,0.00051506,120]
[394028404,1763200311580,-500.0,0.00051506,120]
[394028405,1763200311593,-500.0,0.00051506,120]
[394028406,1763200311603,-500.0,0.00051506,120]
[394028407,1763200311612,-500.0,0.00051506,120]
[394028408,1763200311622,-500.0,0.00051506,120]
[394028409,1763200311631,-531.24,0.00051506,120]
[394028410,1763200311641,-500.0,0.00051506,120]
[394028411,1763200311650,-1312.52,0.00051506,120]
[394028412,1763200311660,-666.72,0.00051506,120]
[394028413,1763200311669,-500.0,0.00051506,120]
[394028414,1763200311680,-500.0,0.00051506,120]
[394028415,1763200311690,-500.0,0.00051506,120]
[394028416,1763200311700,-500.0,0.00051506,120]
[394028417,1763200311710,-500.0,0.00051506,120]
[394028418,1763200311720,-505.97,0.00051506,120]
[394028419,1763200311730,-500.0,0.00051506,120]
[394028420,1763200311740,-507.65,0.00051506,2]
[394028421,1763200311749,-500.0,0.00051506,120]
[394028422,1763200311758,-655.84,0.00051506,120]
[394028423,1763200311770,-500.0,0.00051506,120]
[394028424,1763200311780,-500.0,0.00051506,120]
[394028425,1763200311789,-566.68,0.00051506,120]
[394028426,1763200311799,-500.0,0.00051506,120]
[394028427,1763200311809,-629.45,0.00051506,120]
[394028428,1763200311819,-500.0,0.00051506,120]
[394028429,1763200311828,-532.44,0.00051506,120]
[394028430,1763200311838,-517.42,0.00051506,120]
[394028431,1763200311848,-500.0,0.00051506,120]
[394028432,1763200311859,-500.0,0.00051506,120]
[394028433,1763200311868,-512.08,0.00051506,120]
[394028434,1763200311878,-948.59,0.00051506,120]
[394028435,1763200311888,-500.0,0.00051506,120]
[394028436,1763200311897,-500.0,0.00051506,120]
[394028437,1763200311907,-500.0,0.00051506,120]
[394028438,1763200311916,-1011.89,0.00051506,120]
[394028439,1763200311925,-500.0,0.00051506,120]
[394028440,1763200311935,-875.77,0.00051506,120]
[394028441,1763200311944,-500.0,0.00051506,120]
[394028442,1763200311954,-500.0,0.00051506,120]
[394028443,1763200311963,-500.0,0.00051506,120]
[394028444,1763200311972,-500.0,0.00051506,120]
[394028445,1763200311981,-500.0,0.00051506,120]
[394028446,1763200311991,-500.0,0.00051506,120]
[394028447,1763200312000,-500.0,0.00051506,120]
[394028448,1763200312010,-604.95,0.00051506,120]
[394028449,1763200312021,-174.6396942,0.00051506,120]
[394028450,1763200312030,-500.0,0.00051506,120]
[394028451,1763200312039,-500.0,0.00051506,120]
[394028452,1763200312049,-564.94,0.00051506,120]
[394028453,1763200312058,-500.0,0.00051506,120]
[394028454,1763200312067,-500.0,0.00051506,120]
[394028455,1763200312077,-203.36,0.00051506,120]
[394028456,1763200312086,-1119.68,0.00051506,120]
[394028457,1763200312096,-500.0,0.00051506,120]
[394028458,1763200312106,-611.0400478,0.00051506,120]
[394028459,1763200312115,-1259.05,0.00051506,120]
[394028460,1763200312125,-865.15,0.00051506,120]
[394028461,1763200312134,-500.0,0.00051506,120]
[394028462,1763200312143,-500.0,0.00051506,120]
[394028463,1763200312153,-955.73,0.00051506,120]
[394028464,1763200312163,-200.26588966,0.00051506,120]
[394028465,1763200312173,-500.0,0.00051506,120]
[394028466,1763200312182,-500.0,0.00051506,120]
[394028467,1763200312191,-500.0,0.00051506,21]
[394028468,1763200312200,-500.0,0.00051506,120]
[394028469,1763200312214,-500.0,0.00051506,120]
[394028470,1763200312223,-1298.83,0.00051506,120]
[394028471,1763200312233,-387.21612484,0.00051506,120]
[394028472,1763200312242,-687.91,0.00051506,120]
[394028473,1763200312251,-500.0,0.00051506,120]
[394028474,1763200312261,-534.06662051,0.00051506,120]
[394028475,1763200312271,-500.0,0.00051506,120]
[394028476,1763200312280,-366.32990648,0.00051506,120]
[394028477,1763200312290,-1584.66,0.00051506,120]
[394028478,1763200312300,-500.0,0.00051506,120]
[394028479,1763200312309,-625.34,0.00051506,120]
[394028480,1763200312318,-500.0,0.00051506,120]
[394028481,1763200312327,-500.0,0.00051506,120]
[394028482,1763200312337,-500.0,0.00051506,120]
[394028483,1763200312346,-626.26,0.00051506,120]
[394028484,1763200312355,-500.0,0.00051506,120]
[394028485,1763200312365,-776.15,0.00051506,120]
[394028486,1763200312375,-500.0,0.00051506,120]
[394028487,1763200312384,-1059.33,0.00051506,120]
[394028488,1763200312394,-500.0,0.00051506,120]
[394028489,1763200312403,-2689.19,0.00051506,120]
[394028490,1763200312412,-500.0,0.00051506,120]
[394028491,1763200312421,-1158.62,0.00051506,120]
[394028492,1763200312431,-520.26,0.00051506,120]
[394028493,1763200312441,-500.0,0.00051506,120]
[394028494,1763200312450,-500.0,0.00051506,120]
[394028495,1763200312459,-777.19,0.00051506,120]
[394028496,1763200312468,-500.0,0.00051506,120]
[394028497,1763200312478,-500.0,0.00051506,120]
[394028498,1763200312487,-500.0,0.00051506,120]
[394028499,1763200312498,-1619.88,0.00051506,30]
[394028500,1763200312507,-1089.69,0.00051506,120]
[394028501,1763200312518,-500.0,0.00051506,120]
[394028502,1763200312527,-401.13178642,0.00051506,120]
[394028503,1763200312537,-576.07,0.00051506,120]
[394028504,1763200312546,-500.0,0.00051506,120]
[394028505,1763200312556,-1298.65,0.00051506,120]
[394028506,1763200312565,-527.42,0.00051506,120]
[394028507,1763200312574,-500.0,0.00051506,120]
[394028508,1763200312584,-2380.54,0.00051506,120]
[394028509,1763200312593,-1477.9,0.00051506,120]
[394028510,1763200312603,-500.0,0.00051506,120]
[394028511,1763200312613,-500.0,0.00051506,120]
[394028512,1763200312622,-500.0,0.00051506,120]
[394028513,1763200312632,-979.94,0.00051506,120]
[394028514,1763200312642,-745.02,0.00051506,120]
[394028515,1763200312651,-500.0,0.00051506,120]
[394028516,1763200312661,-500.41,0.00051506,120]
[394028517,1763200312670,-500.0,0.00051506,120]
[394028518,1763200312679,-500.0,0.00051506,120]
[394028519,1763200312689,-500.0,0.00051506,120]
[394028520,1763200312699,-500.0,0.00051506,120]
[394028521,1763200312708,-507.72,0.00051506,120]
[394028522,1763200312717,-587.0596308,0.00051506,120]
[394028523,1763200312727,-539.7,0.00051506,120]
[394028524,1763200312736,-789.21,0.00051506,120]
[394028525,1763200312746,-500.0,0.00051506,120]
[394028526,1763200312756,-500.0,0.00051506,120]
[394028527,1763200312765,-937.06,0.00051506,120]
[394028528,1763200312776,-500.0,0.00051506,120]
[394028529,1763200312785,-500.0,0.00051506,120]
[394028530,1763200312795,-523.49,0.00051506,120]
[394028531,1763200312805,-571.26,0.00051506,120]
[394028532,1763200312814,-533.87852983,0.00051506,120]
[394028533,1763200312823,-500.0,0.00051506,120]
[394028534,1763200312833,-840.74,0.00051506,120]
[394028535,1763200312842,-500.0,0.00051506,120]
[394028536,1763200312852,-839.73,0.00051506,120]
[394028537,1763200312861,-500.0,0.00051506,120]
[394028538,1763200312871,-500.0,0.00051506,120]
[394028539,1763200312880,-548.3,0.00051506,120]
[394028540,1763200312889,-533.64,0.00051506,120]
[394028541,1763200312898,-500.0,0.00051506,120]
[394028542,1763200312907,-500.0,0.00051506,120]
[394028543,1763200312916,-1390.62,0.00051506,120]
[394028544,1763200312928,-500.0,0.00051506,120]
[394028545,1763200312937,-572.61,0.00051506,120]
[394028546,1763200312947,-1276.71,0.00051506,120]
[394028547,1763200312956,-945.13,0.00051506,120]
[394028548,1763200312966,-1188.94,0.00051506,120]
[394028549,1763200312975,-1077.77,0.00051506,120]
[394028550,1763200312984,-500.0,0.00051506,120]
[394028551,1763200312993,-500.0,0.00051506,120]
[394028552,1763200313002,-1791.91,0.00051506,120]
[394028553,1763200313011,-387.74444645,0.00051506,120]
[394028554,1763200313022,-500.0,0.00051506,120]
[394028555,1763200313032,-500.0,0.00051506,120]
[394028556,1763200313041,-500.0,0.00051506,120]
[394028557,1763200313050,-500.0,0.00051506,120]
[394028558,1763200313060,-500.0,0.00051506,120]
[394028559,1763200313069,-500.0,0.00051506,120]
[394028560,1763200313079,-1017.14,0.00051506,120]
[394028561,1763200313089,-500.0,0.00051506,120]
[394028562,1763200313099,-500.0,0.00051506,120]
[394028563,1763200313108,-936.67,0.00051506,120]
[394028564,1763200313118,-500.0,0.00051506,120]
[394028565,1763200313128,-500.0,0.00051506,120]
[394028566,1763200313138,-649.89,0.00051506,120]
[394028567,1763200313147,-1776.75,0.00051506,120]
[394028568,1763200313156,-500.0,0.00051506,120]
[394028569,1763200313165,-500.0,0.00051506,120]
[394028570,1763200313174,-500.0,0.00051506,120]
[394028571,1763200313184,-288.3882341,0.00051506,120]
[394028572,1763200313193,-500.0,0.00051506,120]
[394028573,1763200313203,-532.97,0.00051506,120]
[394028574,1763200313215,-500.0,0.00051506,120]
[394028575,1763200313366,-777.09,0.00051506,120]
[394028576,1763200313376,-500.0,0.00051506,120]
[394028577,1763200313386,-500.0,0.00051506,120]
[394028578,1763200313395,-500.0,0.00051506,120]
[394028579,1763200313405,-1276.7,0.00051506,7]
[394028580,1763200313414,-927.9,0.00051506,120]
[394028581,1763200313424,-500.0,0.00051506,120]
[394028582,1763200313433,-979.1,0.00051506,120]
[394028583,1763200313443,-769.66,0.00051506,120]
[394028584,1763200313452,-500.0,0.00051506,120]
[394028585,1763200313461,-500.0,0.00051506,120]
[394028586,1763200313470,-500.0,0.00051506,120]
[394028587,1763200313480,-500.0,0.00051506,120]
[394028588,1763200313488,-500.0,0.00051506,120]
[394028589,1763200313497,-500.0,0.00051506,120]
[394028590,1763200313506,-609.02,0.00051506,120]
[394028591,1763200313515,-624.67,0.00051506,120]
[394028592,1763200313525,-500.0,0.00051506,120]
[394028593,1763200313534,-500.0,0.00051506,120]
[394028594,1763200313543,-500.0,0.00051506,120]
[394028595,1763200313552,-500.0,0.00051506,120]
[394028596,1763200313561,-500.0,0.00051506,120]
[394028597,1763200313570,-500.0,0.00051506,120]
[394028598,1763200313579,-745.41,0.00051506,120]
[394028599,1763200313588,-500.0,0.00051506,120]
[394028600,1763200313598,-500.0,0.00051506,120]
[394028601,1763200313607,-500.0,0.00051506,120]
[394028602,1763200313616,-4568.1,0.00051506,3]
[394028603,1763200313625,-500.0,0.00051506,120]
[394028604,1763200313634,-1131.39,0.00051506,120]
[394028605,1763200313643,-500.0,0.00051506,120]
[394028606,1763200313652,-500.0,0.00051506,120]
[394028607,1763200313662,-500.0,0.00051506,120]
[394028608,1763200313671,-500.0,0.00051506,120]
[394028609,1763200313681,-797.3,0.00051506,120]
[394028610,1763200313690,-500.0,0.00051506,120]
[394028611,1763200313700,-849.34,0.00051506,120]
[394028612,1763200313709,-500.0,0.00051506,120]
[394028613,1763200313719,-500.0,0.00051506,120]
[394028614,1763200313728,-577.74,0.00051506,120]
[394028615,1763200313737,-647.88,0.00051506,120]
[394028616,1763200313746,-500.0,0.00051506,120]
[394028617,1763200313755,-566.74,0.00051506,120]
[394028618,1763200313764,-636.73,0.00051506,120]
[394028619,1763200313774,-500.0,0.00051506,30]
[394028620,1763200313784,-500.0,0.00051506,120]
[394028621,1763200313793,-500.0,0.00051506,120]
[394028622,1763200313802,-500.0,0.00051506,120]
[394028623,1763200313812,-1133.68,0.00051506,120]
[394028624,1763200313821,-500.0,0.00051506,120]
[394028625,1763200313831,-500.0,0.00051506,120]
[394028626,1763200313839,-1012.59,0.00051506,120]
[394028627,1763200313849,-500.0,0.00051506,120]
[394028628,1763200313858,-500.0,0.00051506,120]
[394028629,1763200313867,-1236.1,0.00051506,120]
[394028630,1763200313876,-800.22,0.00051506,120]
[394028631,1763200313886,-500.0,0.00051506,120]
[394028632,1763200313896,-815.37,0.00051506,120]
[394028633,1763200313906,-500.0,0.00051506,120]
[394028634,1763200313915,-506.07026577,0.00051506,120]
[394028635,1763200313924,-500.0,0.00051506,120]
[394028636,1763200313934,-500.0,0.00051506,120]
[394028637,1763200313943,-1270.32,0.00051506,120]
[394028638,1763200313954,-617.48,0.00051506,120]
[394028639,1763200313966,-500.0,0.00051506,120]
[394028640,1763200313975,-500.0,0.00051506,120]
[394028641,1763200313984,-2708.03,0.00051506,120]
[394028642,1763200313994,-500.0,0.00051506,120]
[394028643,1763200314004,-500.0,0.00051506,120]
[394028644,1763200314013,-500.0,0.00051506,120]
[394028645,1763200314023,-500.0,0.00051506,120]
[394028646,1763200314033,-500.0,0.00051506,120]
[394028647,1763200314042,-1700.39,0.00051506,120]
[394028648,1763200314052,-845.92,0.00051506,120]
[394028649,1763200314061,-590.7,0.00051506,120]
[394028650,1763200314072,-500.0,0.00051506,120]
[394028651,1763200314081,-500.0,0.00051506,120]
[394028652,1763200314091,-500.0,0.00051506,7]
[394028653,1763200314100,-500.0,0.00051506,120]
[394028654,1763200314109,-500.0,0.00051506,120]
[394028655,1763200314119,-507.72526609,0.00051506,120]
[394028656,1763200314129,-576.07,0.00051506,120]
[394028657,1763200314138,-500.0,0.00051506,120]
[394028658,1763200314148,-500.0,0.00051506,120]
[394028659,1763200314157,-321.511123,0.00051506,120]
[394028660,1763200314167,-580.02,0.00051506,120]
[394028661,1763200314176,-500.0,0.00051506,120]
[394028662,1763200314186,-500.0,0.00051506,120]
[394028663,1763200314195,-1000.0,0.00051506,2]
[394028664,1763200314204,-221.6,0.00051506,120]
[394028665,1763200314218,-1000.0,0.00051506,2]
[394028666,1763200314227,-500.0,0.00051506,120]
[394028667,1763200314237,-500.0,0.00051506,120]
[394028668,1763200314247,-812.44,0.00051506,2]
[394028669,1763200314257,-557.41,0.00051506,120]
[394028670,1763200314266,-1000.0,0.00051506,30]
[394028671,1763200314277,-164.1708306,0.00051562,30]
[394028672,1763200314288,-160.0,0.00051758,13]
[394028673,1763200314298,-500.0,0.0005178,120]
[394028674,1763200314307,-687.74,0.0005178,120]
[394028675,1763200314316,-554.45,0.0005178,120]
[394028676,1763200314326,-500.0,0.0005178,120]
[394028677,1763200314335,-500.0,0.0005178,120]
[394028678,1763200314344,-500.0,0.0005178,120]
[394028679,1763200314354,-500.0,0.0005178,120]
[394028680,1763200314363,-582.92,0.0005178,120]
[394028681,1763200314372,-500.0,0.0005178,120]
[394028682,1763200314382,-790.87,0.0005178,120]
[394028683,1763200314391,-629.47,0.0005178,120]
[394028684,1763200314400,-673.94,0.0005178,120]
[394028685,1763200314409,-500.0,0.0005178,120]
[394028686,1763200314419,-758.17,0.0005178,120]
[394028687,1763200314428,-590.85,0.0005178,120]
[394028688,1763200314438,-500.0,0.0005178,120]
[394028689,1763200314447,-731.68,0.0005178,120]
[394028690,1763200314457,-571.3,0.0005178,120]
[394028691,1763200314467,-500.0,0.0005178,120]
[394028692,1763200314476,-500.0,0.0005178,120]
[394028693,1763200314486,-506.09010099,0.0005178,120]
[394028694,1763200314495,-1090.76,0.0005178,7]
[394028695,1763200314505,-500.0,0.0005178,120]
[394028696,1763200314514,-500.0,0.0005178,120]
[394028697,1763200314525,-3400.85,0.0005178,2]
[394028698,1763200314535,-500.0,0.0005178,120]
[394028699,1763200314545,-1174.97,0.0005178,120]
[394028700,1763200314555,-618.7,0.0005178,120]
[394028701,1763200314565,-506.21,0.0005178,120]
[394028702,1763200314575,-500.0,0.0005178,120]
[394028703,1763200314585,-500.0,0.0005178,120]
[394028704,1763200314595,-536.43,0.0005178,120]
[394028705,1763200314605,-505.46,0.0005178,120]
[394028706,1763200314615,-500.0,0.0005178,120]
[394028707,1763200314624,-500.0,0.0005178,120]
[394028708,1763200314634,-500.0,0.0005178,120]
[394028709,1763200314643,-566.44,0.0005178,120]
[394028710,1763200314653,-362.03225586,0.0005178,120]
[394028711,1763200314663,-829.99,0.0005178,120]
[394028712,1763200314672,-500.0,0.0005178,120]
[394028713,1763200314682,-500.0,0.0005178,120]
[394028714,1763200314691,-500.0,0.0005178,120]
[394028715,1763200314700,-500.0,0.0005178,120]
[394028716,1763200314709,-500.0,0.0005178,120]
[394028717,1763200314718,-500.0,0.0005178,120]
[394028718,1763200314727,-500.0,0.0005178,120]
[394028719,1763200314735,-546.38,0.0005178,120]
[394028720,1763200314745,-500.0,0.0005178,120]
[394028721,1763200314754,-785.26,0.0005178,120]
[394028722,1763200314763,-500.0,0.0005178,120]
[394028723,1763200314774,-500.0,0.0005178,120]
[394028724,1763200314783,-500.0,0.0005178,120]
[394028725,1763200314792,-500.0,0.0005178,120]
[394028726,1763200314801,-500.0,0.0005178,120]
[394028727,1763200314809,-500.0,0.0005178,120]
[394028728,1763200314819,-500.0,0.0005178,120]
[394028729,1763200314828,-500.0,0.0005178,120]
[394028730,1763200314837,-500.0,0.0005178,120]
[394028731,1763200314846,-500.0,0.0005178,120]
[394028732,1763200314855,-505.17101938,0.0005178,120]
[394028733,1763200314864,-500.0,0.0005178,120]
[394028734,1763200314873,-500.0,0.0005178,120]
[394028735,1763200314882,-1165.61,0.0005178,120]
[394028736,1763200314891,-629.76,0.0005178,120]
[394028737,1763200314899,-500.0,0.0005178,120]
[394028738,1763200314908,-511.51,0.0005178,2]
[394028739,1763200314918,-500.0,0.0005178,120]
[394028740,1763200314927,-500.0,0.0005178,120]
[394028741,1763200314936,-500.0,0.0005178,120]
[394028742,1763200314945,-500.0,0.0005178,120]
[394028743,1763200314954,-500.0,0.0005178,120]
[394028744,1763200314962,-515.28,0.0005178,120]
[394028745,1763200314971,-500.0,0.0005178,120]
[394028746,1763200314980,-500.0,0.0005178,120]
[394028747,1763200314989,-500.0,0.0005178,120]
[394028748,1763200314998,-958.77,0.0005178,120]
[394028749,1763200315007,-506.7622634,0.0005178,120]
[394028750,1763200315016,-504.21645054,0.0005178,120]
[394028751,1763200315026,-500.0,0.0005178,120]
[394028752,1763200315036,-500.0,0.0005178,120]
[394028753,1763200315046,-500.0,0.0005178,120]
[394028754,1763200315055,-500.0,0.0005178,120]
[394028755,1763200315064,-507.75533776,0.0005178,120]
[394028756,1763200315073,-500.0,0.0005178,120]
[394028757,1763200315082,-500.0,0.0005178,120]
[394028758,1763200315091,-500.0,0.0005178,120]
[394028759,1763200315100,-500.0,0.0005178,120]
[394028760,1763200315109,-500.0,0.0005178,120]
[394028761,1763200315118,-531.24,0.0005178,120]
[394028762,1763200315128,-500.0,0.0005178,120]
[394028763,1763200315139,-1312.52,0.0005178,120]
[394028764,1763200315148,-666.72,0.0005178,120]
[394028765,1763200315158,-500.0,0.0005178,120]
[394028766,1763200315167,-500.0,0.0005178,120]
[394028767,1763200315176,-500.0,0.0005178,120]
[394028768,1763200315186,-500.0,0.0005178,120]
[394028769,1763200315195,-500.0,0.0005178,120]
[394028770,1763200315205,-505.97,0.0005178,120]
[394028771,1763200315220,-500.0,0.0005178,120]
[394028772,1763200315229,-507.65,0.0005178,2]
[394028773,1763200315238,-500.0,0.0005178,120]
[394028774,1763200315247,-655.84,0.0005178,120]
[394028775,1763200315258,-506.36613688,0.0005178,120]
[394028776,1763200315267,-500.0,0.0005178,120]
[394028777,1763200315276,-566.68,0.0005178,120]
[394028778,1763200315286,-500.0,0.0005178,120]
[394028779,1763200315296,-629.45,0.0005178,120]
[394028780,1763200315305,-500.0,0.0005178,120]
[394028781,1763200315316,-532.44,0.0005178,120]
[394028782,1763200315326,-517.42,0.0005178,120]
[394028783,1763200315336,-500.0,0.0005178,120]
[394028784,1763200315346,-538.15364566,0.0005178,120]
[394028785,1763200315356,-512.08,0.0005178,120]
[394028786,1763200315367,-500.0,0.0005178,120]
[394028787,1763200315378,-948.59,0.0005178,120]
[394028788,1763200315387,-555.1925589,0.0005178,120]
[394028789,1763200315397,-500.0,0.0005178,120]
[394028790,1763200315407,-1011.89,0.0005178,120]
[394028791,1763200315419,-422.38557948,0.0005178,120]
[394028792,1763200315428,-875.77,0.0005178,120]
[394028793,1763200315439,-500.0,0.0005178,120]
[394028794,1763200315448,-500.0,0.0005178,120]
[394028795,1763200315458,-500.0,0.0005178,120]
[394028796,1763200315468,-500.0,0.0005178,120]
[394028797,1763200315478,-500.0,0.0005178,120]
[394028798,1763200315487,-500.0,0.0005178,120]
[394028799,1763200315497,-500.0,0.0005178,120]
[394028800,1763200315633,-604.95,0.0005178,120]
[394028801,1763200315643,-498.98000067,0.0005178,120]
[394028802,1763200315653,-500.0,0.0005178,120]
[394028803,1763200315664,-564.94,0.0005178,120]
[394028804,1763200315674,-500.0,0.0005178,120]
[394028805,1763200315683,-500.0,0.0005178,120]
[394028806,1763200315694,-1119.68,0.0005178,120]
[394028807,1763200315705,-500.0,0.0005178,120]
[394028808,1763200315714,-1259.05,0.0005178,120]
[394028809,1763200315724,-865.15,0.0005178,120]
[394028810,1763200315733,-500.0,0.0005178,120]
[394028811,1763200315742,-500.0,0.0005178,120]
[394028812,1763200315751,-955.73,0.0005178,120]
[394028813,1763200315761,-500.0,0.0005178,120]